[Event "Sardinia World Festival-A 2024"]
[Site "Orosei"]
[Date "2024.05.01"]
[Round "6.7"]
[White "Moussard, Jules"]
[Black "Zhalmakhanov, Ramazan"]
[Result "1/2-1/2"]
[ECO "C84"]
[WhiteElo "2610"]
[BlackElo "2490"]
[Annotator "TA"]
[PlyCount "71"]
[EventDate "2024.04.26"]
[EventType "swiss"]
[EventCountry "ITA"]
[SourceTitle "playchess.com"]
[Source "ChessBase"]
[SourceQuality "1"]
[TimeControl "40/5400+30:1800+30"]

{[%evp 20,71,21,15,20,33,28,29,35,26,17,22,22,0,0,0,0,0,0,0,8,0,33,29,27,7,12,0,0,0,23,0,0,-109,-126,-229,-223,-235,0,-222,-214,-365,-359,-305,0,0,0,0,525,0,0,0,0,0]} 1. e4 {[%emt 0:03:20]} e5 {[%emt 0:00:09]} 2. Nf3 {[%emt 0:00:08]} Nc6 {[%emt 0:00:06]} 3. Bb5 {[%emt 0:00:05][%cal Bf1b5,Bb5a4,Ba4b3][%mdl 32]} a6 {[%emt 0:00:12]} 4. Ba4 {[%emt 0:00:08]} Nf6 {[%emt 0:00:09]} 5. O-O {[%emt 0:00:06]} Be7 {[%emt 0:00:27]} 6. d3 {[%emt 0:01:09]} b5 {[%emt 0:01:00]} 7. Bb3 {[%emt 0:00:06]} O-O {[%emt 0:04:09]} 8. a4 {[%emt 0:01:24]} Rb8 {[%emt 0:08:12]} 9. axb5 {[%emt 0:01:49]} axb5 {[%emt 0:00:16]} 10. Nc3 {[%emt 0:01:29]} d6 {[%emt 0:00:32]} 11. h3 {[%emt 0:09:02]} Be6 {[%emt 0:08:57]} 12. Nd5 {[%emt 0:05:50]} Bxd5 {[%emt 0:02:21]} 13. exd5 {[%emt 0:00:50]} Nb4 {[%emt 0:01:00] White has an edge.} 14. d4 {[%emt 0:00:50]} e4 {[%emt 0:01:35]} 15. Ng5 {[%emt 0:03:31]} c5 {[%emt 0:12:25] Strongly threatening ...c4.} 16. c3 {[%emt 0:14:40]} Nd3 {[%emt 0:12:55]} 17. Bc2 {[%emt 0:07:04]} c4 {[%emt 0:02:29]} 18. Qe2 {[%emt 0:01:41]} Re8 {[%emt 0:18:53]} (18... Nxd5 $6 19. Nxh7 (19. Nxe4 Nxc1 20. Raxc1 Nc7 $11) (19. Qxe4 Bxg5 20. Bxd3 cxd3 $17) 19... Nxc3 20. bxc3 $16) 19. Nxe4 {[%emt 0:01:33]} Nxc1 {[%emt 0:01:01]} 20. Rfxc1 {[%emt 0:01:13]} Nxe4 {[%emt 0:00:45]} (20... Nxd5 $5 21. Qf3 Nc7 $11) 21. Qxe4 {[%emt 0:01:08]} (21. Bxe4 $2 Bg5 22. Re1 f5 $19) 21... g6 {[%emt 0:00:02] ...Bg5 is the strong threat.} 22. Qf3 {[%emt 0:07:09]} Bg5 {[%emt 0:06:22]} 23. Ra7 {[%emt 0:02:14]} Re7 {[%emt 0:00:07]} 24. Rca1 {[%emt 0:00:23]} b4 {[%emt 0:00:33]} 25. R7a4 {[%emt 0:02:50]} Qe8 {[%emt 0:03:14] And now ...Re2 would win.} 26. Ra7 {[%emt 0:25:20]} (26. Rxb4 $2 Rxb4 27. cxb4 Re1+ 28. Rxe1 Qxe1+ 29. Kh2 Qd2 $17) (26. Bd1 $1 $11 {remains equal.}) 26... b3 $17 {[%emt 0:03:41]} 27. Rxe7 {[%emt 0:01:09]} (27. Bf5 $17) 27... Qxe7 $19 {[%emt 0:00:10]} 28. Bd1 {[%emt 0:00:04]} ({Avoid the trap} 28. Be4 $2 Re8 (28... f5 $2 29. Bxf5 gxf5 30. Qxf5 $17) 29. Bxg6 fxg6 $19 (29... hxg6 $2 30. Kf1 $19)) 28... Qe1+ {[%emt 0:02:25][%mdl 1024] Black has strong compensation.} 29. Kh2 {[%emt 0:00:04]} Re8 $1 {[%emt 0:00:37] White must now prevent ...Qd2.} 30. Ra7 $2 {[%emt 0:00:41] [#]} (30. g3 {keeps fighting.}) 30... f5 $1 {[%emt 0:00:53] aiming for ...Qd2.} 31. Rc7 {[%emt 0:03:38] [#]} Re3 $2 {[%emt 0:01:15]} 32. fxe3 $11 {[%emt 0:00:42]} Bxe3 {[%emt 0:00:05] ( -> ...Bg1+)} 33. Re7 {[%emt 0:04:46]} (33. Rxc4 $2 {gets mated.} Bg1+ 34. Kh1 Bf2+ 35. Kh2 Qg1#) 33... Bg1+ {[%emt 0:01:37]} 34. Kh1 {[%emt 0:00:01]} Be3+ {[%emt 0:00:07]} 35. Kh2 {[%emt 0:00:02]} Qg1+ {[%emt 0:00:32]} 36. Kg3 {[%emt 0:00:04] Weighted Error Value: White=0.25 (precise) /Black=0.56.  Loses game:     	White=1     	---        Missed win:     	White=1     	Black=1      Mistake:       	White=3     	---        Inaccurate:     	---       	Black=1      OK:         	White=8     	Black=12     Best:        	White=3     	Black=2      Strong:       	---       	Black=2} 1/2-1/2

[Event "Sardinia World Festival-A 2024"]
[Site "Orosei"]
[Date "2024.05.01"]
[Round "6.8"]
[White "Aizenberg, Benny"]
[Black "Gurel, Ediz"]
[Result "1/2-1/2"]
[ECO "B90"]
[WhiteElo "2409"]
[BlackElo "2578"]
[Annotator "TA"]
[PlyCount "39"]
[EventDate "2024.04.26"]
[EventType "swiss"]
[EventCountry "ITA"]
[SourceTitle "playchess.com"]
[Source "ChessBase"]
[SourceQuality "1"]
[TimeControl "40/5400+30:1800+30"]

{[%evp 13,39,29,20,0,16,0,15,6,10,16,31,28,10,-14,0,-7,12,8,15,0,0,0,0,0,0,0,0,0]} 1. e4 {[%emt 0:00:03]} c5 {[%emt 0:00:12]} 2. Nf3 {[%emt 0:00:05][%cal Bg1f3,Bf3d4,Bd4b3][%mdl 32]} d6 {[%emt 0:00:07]} 3. d4 {[%emt 0:00:04]} cxd4 {[%emt 0:00:05]} 4. Nxd4 {[%emt 0:00:04]} Nf6 {[%emt 0:00:09]} 5. Nc3 {[%emt 0:00:04]} a6 {[%emt 0:00:04]} 6. Be3 {[%emt 0:00:04]} e5 {[%emt 0:00:25]} 7. Nb3 {[%emt 0:00:04]} Be7 {[%emt 0:00:39]} 8. h3 {[%emt 0:00:08]} Be6 {[%emt 0:01:05]} 9. Qf3 {[%emt 0:00:07]} Nbd7 {[%emt 0:03:40][%cal Bb8d7,Bd7b6,Bb6c4,Bc4b2][%mdl 32]} 10. O-O-O {[%emt 0:00:09]} Rc8 {[%emt 0:01:02][%cal Oc8c3]} 11. Nd5 {[%emt 0:00:05]} Bxd5 {[%emt 0:06:27]} 12. exd5 {[%emt 0:00:07]} Nb6 {[%emt 0:03:42]} 13. g4 {[%emt 0:00:04][%cal Bg2g4,Bg4g5][%mdl 32] The position is equal.} Qc7 {[%emt 0:02:43]} 14. c3 $132 {[%emt 0:02:09][%mdl 2048] White is not holding back. Active counter play!} Nc4 {[%emt 0:05:25]} (14... Nbxd5 $5 15. Bd2 (15. Rxd5 Qc6 $11) 15... Nb6 $11) 15. g5 {[%emt 0:22:31]} (15. Bxc4 {simplifies} Qxc4 16. Kb1 O-O 17. Bg5) 15... Nxb2 {[%emt 0:16:25]} 16. Kxb2 {[%emt 0:11:40] [#] Black must now prevent Rc1.} Qxc3+ {[%emt 0:00:05]} 17. Kb1 $1 {[%emt 0:02:45][%cal Od1c1] aiming for Rc1!} ({But not} 17. Ka3 $2 Rc5 18. Bxc5 (18. gxf6 $2 Ra5#) (18. Ka4 $2 Nd7 $19) 18... Qxf3 $19) 17... Qc2+ {[%emt 0:00:38]} 18. Ka1 {[%emt 0:00:05][%cal Od1c1] Hoping for Rc1!} Qc3+ {[%emt 0:00:19]} 19. Kb1 {[%emt 0:00:05][%cal Od1c1] Strongly threatening Rc1!} Qc2+ {[%emt 0:00:28]} 20. Ka1 {[%emt 0:00:04] A rather calm draw.   Weighted Error Value: White=0.09 (flawless) /Black=0.06 (flawless) .  OK:         	White=1     	Black=7      Best:        	---       	Black=1      Strong:       	White=1     	---} 1/2-1/2

[Event "Sardinia World Festival-A 2024"]
[Site "Orosei"]
[Date "2024.05.01"]
[Round "6.9"]
[White "Lagarde, Maxime"]
[Black "Velten, Paul"]
[Result "1/2-1/2"]
[ECO "C11"]
[WhiteElo "2640"]
[BlackElo "2481"]
[Annotator "TA"]
[PlyCount "61"]
[EventDate "2024.04.26"]
[EventType "swiss"]
[EventCountry "ITA"]
[SourceTitle "playchess.com"]
[Source "ChessBase"]
[SourceQuality "1"]
[TimeControl "40/5400+30:1800+30"]

{[%evp 15,61,6,7,12,15,0,20,0,0,-12,0,0,-6,-3,-1,0,0,0,0,0,0,0,0,-12,4,-29,0,0,0,0,0,0,0,-51,0,-66,15,-19,-19,-19,-19,-19,18,18,46,33,54,54]} 1. e4 {[%emt 0:00:02][%cal Be2e4,Be4e5][%mdl 32]} e6 {[%emt 0:00:17]} 2. d4 {[%emt 0:00:06]} d5 {[%emt 0:00:22]} 3. Nc3 {[%emt 0:00:05]} Nf6 {[%emt 0:00:32]} 4. e5 {[%emt 0:00:04]} Nfd7 {[%emt 0:00:35]} 5. f4 {[%emt 0:00:03]} c5 {[%emt 0:00:42]} 6. Nf3 {[%emt 0:00:04]} Nc6 {[%emt 0:00:55]} 7. Be3 {[%emt 0:00:06]} a6 {[%emt 0:01:03]} 8. Qd2 {[%emt 0:00:41]} Be7 {[%emt 0:02:12]} 9. Bd3 {[%emt 0:01:54]} b5 {[%emt 0:05:12]} 10. Qf2 {[%emt 0:08:47][%cal Rd4c5]} O-O {[%emt 0:06:04]} 11. O-O {[%emt 0:12:49][%cal Rd4c5] The position is equal.} f6 {[%emt 0:09:33]} 12. Qh4 {[%emt 0:04:10]} f5 {[%emt 0:04:52]} 13. Qf2 {[%emt 0:01:33]} cxd4 {[%emt 0:00:17]} 14. Nxd4 {[%emt 0:00:34]} Nxd4 {[%emt 0:00:10]} 15. Bxd4 {[%emt 0:00:04]} Qc7 {[%emt 0:02:53]} 16. a3 {[%emt 0:08:17]} Nc5 {[%emt 0:04:22]} 17. Be2 {[%emt 0:03:09]} Bb7 {[%emt 0:01:41]} 18. Qe3 {[%emt 0:03:29]} Rac8 {[%emt 0:03:01]} 19. g4 {[%emt 0:04:16]} g6 {[%emt 0:04:51]} 20. g5 {[%emt 0:08:46]} Nd7 {[%emt 0:02:59]} 21. Bd3 {[%emt 0:05:43]} Nc5 {[%emt 0:06:03][%cal Oh7h6]} 22. b4 {[%emt 0:02:44]} Ne4 {[%emt 0:00:47]} 23. Ne2 {[%emt 0:00:17]} Kf7 {[%emt 0:01:51]} 24. a4 {[%emt 0:03:49]} (24. Rf3 $11) 24... Bc6 {[%emt 0:11:53]} (24... bxa4 $15 25. Rxa4 h6 26. gxh6 Rh8 27. Bxa6 Rxh6 28. Bxb7 Qxb7) 25. c3 {[%emt 0:06:13]} (25. axb5 $11 Bxb5 26. c3) 25... Qb7 {[%emt 0:02:17]} ({Black should play} 25... bxa4 $15 26. Bxa6 Ra8) 26. a5 {[%emt 0:03:45]} Rh8 {[%emt 0:02:25]} 27. h4 {[%emt 0:02:45]} h6 {[%emt 0:00:54]} 28. Kg2 {[%emt 0:00:36]} Bd7 {[%emt 0:03:26]} 29. Rf3 {[%emt 0:02:15]} Bc6 {[%emt 0:04:49]} 30. Rh1 {[%emt 0:00:52]} h5 {[%emt 0:00:14]} 31. Rd1 {[%emt 0:02:26] Weighted Error Value: White=0.15 (very precise) /Black=0.17 (very precise) .  Mistake:       	White=2     	Black=2      Inaccurate:     	White=2     	Black=3      OK:         	White=5     	Black=9} 1/2-1/2

[Event "Sardinia World Festival-A 2024"]
[Site "Orosei"]
[Date "2024.05.01"]
[Round "6.10"]
[White "Kilic, Eray"]
[Black "Fedoseev, Vladimir"]
[Result "0-1"]
[ECO "C13"]
[WhiteElo "2429"]
[BlackElo "2690"]
[Annotator "TA"]
[PlyCount "139"]
[EventDate "2024.04.26"]
[EventType "swiss"]
[EventCountry "ITA"]
[SourceTitle "playchess.com"]
[Source "ChessBase"]
[SourceQuality "1"]
[TimeControl "40/5400+30:1800+30"]

{[%evp 13,139,12,15,22,20,15,64,64,62,47,80,60,77,38,81,51,41,41,61,41,31,0,0,0,0,-6,0,-18,-8,-28,-31,-37,-7,-23,-33,-45,-42,-78,-68,-161,-132,-189,-169,-247,-237,-245,-243,-331,-63,-73,0,0,0,0,0,0,0,0,0,0,0,0,0,0,0,0,0,0,0,0,0,0,0,0,0,0,0,-73,-82,-92,-80,-160,-152,-158,-157,-153,-162,-186,-197,-211,-209,-293,-293,-293,-277,-267,-254,-251,-268,-259,-262,-673,-626,-596,-447,-439,-444,-438,-433,-564,-553,-561,-550,-513,-496,-938,-907,-956,-956,-1448,-1468,-29981,-29982,-29986,-29987,-29985,-29986,-29991]} 1. e4 {[%emt 0:00:03]} e6 {[%emt 0:00:01]} 2. d4 {[%emt 0:00:06]} d5 {[%emt 0:00:06]} 3. Nc3 {[%emt 0:00:10]} Nf6 {[%emt 0:00:04]} 4. Bg5 {[%emt 0:00:05]} dxe4 {[%emt 0:00:07]} 5. Nxe4 {[%emt 0:00:15]} Be7 {[%emt 0:00:01]} 6. Bxf6 {[%emt 0:00:15]} gxf6 {[%emt 0:00:02]} 7. Nf3 {[%emt 0:00:08]} a6 {[%emt 0:00:05]} 8. c4 {[%emt 0:01:52][%cal Bc2c4,Bc4c5][%mdl 32]} f5 {[%emt 0:07:37]} 9. Nc3 {[%emt 0:00:59]} Qd6 {[%emt 0:00:33]} (9... Bf6 $11 {should be considered.}) 10. c5 $14 {[%emt 0:06:04] White is slightly better.} Qf4 {[%emt 0:00:12]} 11. g3 {[%emt 0:03:00]} Qg4 {[%emt 0:00:11]} 12. Bg2 {[%emt 0:00:23]} O-O {[%emt 0:01:34]} 13. O-O {[%emt 0:01:26]} Rd8 {[%emt 0:00:04]} 14. Qa4 {[%emt 0:08:27]} Nc6 {[%emt 0:11:36]} 15. Rad1 {[%emt 0:03:14]} Rb8 {[%emt 0:00:27]} 16. h3 {[%emt 0:02:46]} Qg7 {[%emt 0:00:03]} 17. Ne5 {[%emt 0:04:09]} Nxe5 {[%emt 0:05:45]} 18. dxe5 {[%emt 0:00:09]} Rf8 $1 {[%emt 0:00:03]} 19. Qd4 {[%emt 0:01:31]} f6 {[%emt 0:00:43]} 20. exf6 {[%emt 0:03:01]} Bxf6 {[%emt 0:00:07]} 21. Qc4 {[%emt 0:00:42]} Kh8 {[%emt 0:00:07]} 22. Kh1 {[%emt 0:08:22]} b6 {[%emt 0:05:56]} 23. c6 {[%emt 0:04:39]} b5 {[%emt 0:05:31]} 24. Qb3 {[%emt 0:05:04]} b4 {[%emt 0:07:34]} 25. Na4 {[%emt 0:01:04]} Rb5 {[%emt 0:01:46] Inhibits Nc5.} 26. Rfe1 {[%emt 0:02:31]} (26. f4 $15) 26... Bd4 $19 {[%emt 0:04:23]} 27. f4 {[%emt 0:07:24]} (27. Rd2 $17 {was called for.}) 27... Bf2 $1 {[%emt 0:03:29][%csl LRe1,LRg3]} 28. Re3 {[%emt 0:00:05]} (28. Re2 {was necessary.} Bxg3 (28... Qxg3 29. Qf3 $17) 29. Qc4) 28... Bxe3 {[%emt 0:02:43]} 29. Qxe3 {[%emt 0:00:03]} Rg8 {[%emt 0:02:56][%cal Ob5a5]} 30. Nc5 {[%emt 0:05:04]} e5 $2 {[%emt 0:07:26]} (30... Qxb2 31. Nd3 Qc3 (31... Qxa2 $2 32. Qd4+ e5 33. Nxe5 $18) 32. Rc1 $17) (30... Ra5 $19 31. Nd7 Qxb2 (31... Rxa2 32. Ne5 $17) (31... Qxg3 $2 32. Qe2 $19)) 31. Rd2 $1 $15 {[%emt 0:11:22]} Ra5 {[%emt 0:11:38]} (31... Qxg3 32. Qxe5+ Qg7 33. Qe3 $11) ({Black should play} 31... e4 $17 32. Bf1 Rb6 (32... Qxg3 33. Qxg3 Rxg3 34. Bxb5 $11)) 32. Bd5 $11 {[%emt 0:04:10]} Re8 {[%emt 0:00:38]} (32... Qxg3 33. Qxe5+ (33. Rg2 Qxg2+ 34. Bxg2 Re8 $18) 33... Qg7 34. Rg2 h6 35. Rxg7 (35. Bxg8 Qxe5 36. fxe5 Rxc5 $18) 35... Rxg7 36. Qe8+ (36. Nd7 Rxd5 37. Qxd5 Re7 $18) 36... Kh7 37. Qxc8 Rxc5 38. Qxf5+ Rg6 39. Qf7+ Kh8 40. Be4 (40. Qxg6 Rxd5 41. Qxh6+ Kg8 42. Qe6+ Kg7 43. Qxd5 Kf6 44. Qe5+ Kg6 45. Qe6+ Kg7)) (32... exf4 $2 33. gxf4 $18) 33. Nb7 {[%emt 0:01:11]} Rb5 {[%emt 0:04:46] Hoping for ...Qf6.} 34. Bc4 {[%emt 0:05:22]} Rxb7 {[%emt 0:00:06]} 35. cxb7 {[%emt 0:00:04]} Bxb7+ {[%emt 0:00:06]} 36. Kh2 {[%emt 0:00:03]} e4 {[%emt 0:05:22]} 37. Qc5 {[%emt 0:00:16]} Qf6 {[%emt 0:03:49] aiming for ...e3.} (37... e3 $6 38. Qxe3 Bc6 39. Qc5 $18) 38. Qxb4 {[%emt 0:07:04]} e3 {[%emt 0:00:14]} 39. Re2 {[%emt 0:00:05]} Bf3 {[%emt 0:00:36]} 40. Re1 {[%emt 0:00:03]} a5 $36 {[%emt 0:08:10][%mdl 2048] Black has the initiative.} 41. Qc3 {[%emt 0:35:29]} Qxc3 {[%emt 0:33:44]} 42. bxc3 {[%emt 0:00:06][%mdl 4096] Endgame. KRB-KRB} e2 {[%emt 0:00:14]} 43. Kg1 {[%emt 0:00:00]} Re3 $1 {[%emt 0:00:00]} 44. Kf2 {[%emt 0:00:00][%csl LRe2,LRe3]} Rxc3 {[%emt 0:00:00]} 45. Be6 {[%emt 0:00:00]} (45. Bxe2 $11 Be4 46. Rd1) 45... Be4 $17 {[%emt 0:00:00] White is on the road to losing.} 46. Kxe2 {[%emt 0:00:00]} Kg7 {[%emt 0:00:00][%cal Og7f6]} 47. Rg1 {[%emt 0:00:00]} (47. g4 $142) 47... a4 $1 {[%emt 0:00:00]} 48. g4 {[%emt 0:00:00]} Kf6 {[%emt 0:00:00]} (48... Rxh3 49. Bxf5 Bxf5 50. gxf5+ Kf6 51. Rc1 $17) 49. gxf5 {[%emt 0:00:00]} Rxh3 {[%emt 0:00:00] Black is more active.} 50. Rc1 {[%emt 0:00:00]} c6 {[%emt 0:00:00]} (50... Bxf5 51. Bxf5 Kxf5 52. Rxc7 $17) 51. Bd7 {[%emt 0:00:00]} Ra3 {[%emt 0:00:00]} (51... Bxf5 $2 52. Rxc6+ Kg7 53. Bxf5 $18) 52. Bxc6 {[%emt 0:00:00]} (52. Be6 $142) 52... Rxa2+ $19 {[%emt 0:00:00]} ({Inferior is} 52... Kxf5 53. Rc5+ Kxf4 54. Rc4 Rxa2+ 55. Kf1 $11) 53. Kd1 {[%emt 0:00:00]} Bxf5 {[%emt 0:00:00]} (53... Kxf5 54. Rc5+ Kxf4 55. Rc4 $14) 54. Bd5 {[%emt 0:00:00]} Bg4+ {[%emt 0:00:00]} 55. Ke1 {[%emt 0:00:00]} Re2+ {[%emt 0:00:00]} 56. Kf1 {[%emt 0:00:01] [#]} Rd2 $1 {[%emt 0:00:00]} 57. Rc6+ $2 {[%emt 0:00:46] [#]} (57. Rc5) 57... Ke7 $1 {[%emt 0:00:00]} ({Worse is} 57... Kf5 58. Be6+ Kxf4 59. Rc4+ Ke5 60. Bxg4 $11) 58. Bg8 {[%emt 0:00:15]} h5 {[%emt 0:00:00]} 59. Ke1 {[%emt 0:02:10]} Re2+ {[%emt 0:00:00]} 60. Kf1 {[%emt 0:00:06]} Re4 {[%emt 0:00:00]} 61. Kf2 {[%emt 0:00:22]} Rxf4+ {[%emt 0:00:00]} 62. Ke3 {[%emt 0:00:23]} Rf3+ {[%emt 0:00:00]} 63. Kd4 {[%emt 0:00:10]} h4 {[%emt 0:00:00] ...h3 would now be deadly.} 64. Rh6 {[%emt 0:00:05]} (64. Bd5 $142 Rf6 65. Rc7+ Bd7 66. Rc3) 64... h3 {[%emt 0:00:00]} 65. Bd5 {[%emt 0:00:05]} Rf4+ {[%emt 0:00:00]} 66. Kc3 {[%emt 0:00:53]} Rf5 {[%emt 0:00:00]} 67. Bc4 {[%emt 0:01:28]} Rh5 {[%emt 0:00:00] Black mates.} 68. Rxh5 {[%emt 0:00:12]} Bxh5 {[%emt 0:00:00]} 69. Bf1 {[%emt 0:00:07]} h2 {[%emt 0:00:00]} 70. Kd4 {[%emt 0:10:11] Weighted Error Value: White=0.24 (precise) /Black=0.14 (very precise) .  Missed win:     	---       	Black=1      Mistake:       	White=8     	Black=2      Inaccurate:     	White=6     	Black=2      OK:         	White=16    	Black=27     Best:        	White=5     	Black=10     Strong:       	White=1     	Black=5} 0-1

[Event "Sardinia World Festival-A 2024"]
[Site "Orosei"]
[Date "2024.05.01"]
[Round "6.11"]
[White "Sjugirov, Sanan"]
[Black "Levin, Guy"]
[Result "1/2-1/2"]
[ECO "D23"]
[WhiteElo "2689"]
[BlackElo "2451"]
[Annotator "TA"]
[PlyCount "76"]
[EventDate "2024.04.26"]
[EventType "swiss"]
[EventCountry "ITA"]
[SourceTitle "playchess.com"]
[Source "ChessBase"]
[SourceQuality "1"]
[TimeControl "40/5400+30:1800+30"]

{[%evp 12,76,0,22,33,5,13,-16,-8,-14,-10,-10,-24,-15,0,-8,18,0,0,-6,-22,-10,0,0,0,0,0,0,0,0,0,0,0,-8,0,-7,-18,-128,-129,-186,-29,-43,-49,-29,13,13,32,-51,-47,-45,-45,-49,13,20,14,13,16,0,0,0,0,0,0,0,0,0,8]} 1. d4 {[%emt 0:00:13]} d5 {[%emt 0:00:25][%cal Bd7d5,Bd5c4][%mdl 32]} 2. c4 {[%emt 0:00:22]} dxc4 {[%emt 0:00:24]} 3. Nf3 {[%emt 0:00:20]} Nf6 {[%emt 0:00:55]} 4. Qa4+ {[%emt 0:00:09]} Nbd7 {[%emt 0:00:26]} 5. Nc3 {[%emt 0:00:53]} a6 {[%emt 0:01:07]} 6. e4 {[%emt 0:00:53]} e6 {[%emt 0:11:23]} 7. Bxc4 {[%emt 0:25:34]} c6 {[%emt 0:10:30] aiming for ...b5.} 8. Bd3 {[%emt 0:20:04]} e5 {[%emt 0:16:27]} 9. Be2 {[%emt 0:24:06]} (9. dxe5 $2 Nc5 10. Qd1 Nxd3+ $19) (9. Nxe5 $5 Nxe5 10. dxe5 $11) 9... exd4 {[%emt 0:08:08]} 10. Qxd4 {[%emt 0:00:05]} Bc5 {[%emt 0:00:17]} 11. Qd2 {[%emt 0:00:55]} O-O {[%emt 0:10:36]} 12. O-O {[%emt 0:00:19]} Qe7 {[%emt 0:03:10][%cal Of8e8] Inhibits e5.} 13. Qc2 {[%emt 0:00:48]} Ng4 {[%emt 0:08:04]} 14. Bg5 {[%emt 0:02:36]} f6 {[%emt 0:00:08]} 15. Bh4 {[%emt 0:01:14]} Nde5 {[%emt 0:01:06]} 16. Nd2 {[%emt 0:10:08]} Kh8 {[%emt 0:10:46]} 17. Kh1 {[%emt 0:02:29]} g5 {[%emt 0:04:18]} 18. Bg3 {[%emt 0:00:12]} h5 {[%emt 0:00:02]} 19. Nb3 {[%emt 0:02:54]} Ba7 {[%emt 0:00:29]} 20. Bxg4 {[%emt 0:00:43]} Bxg4 {[%emt 0:02:02]} 21. h3 $1 {[%emt 0:00:32]} Be6 {[%emt 0:01:00]} 22. f4 {[%emt 0:00:30]} gxf4 {[%emt 0:00:29]} 23. Bxf4 {[%emt 0:00:11]} Rad8 {[%emt 0:00:56] next ...Bc4 is good for Black.} 24. Bxe5 {[%emt 0:03:12]} (24. Rfd1 $11) 24... fxe5 $17 {[%emt 0:01:53]} 25. Nd2 {[%emt 0:00:03] [#]} (25. Rad1 $17 {was called for.}) 25... Qg7 $2 {[%emt 0:04:17]} (25... Rg8 $1 $19 {[%cal Rg8g2] ...Rxg2! is the strong threat.} 26. Rad1 Rxg2) 26. Nf3 $11 {[%emt 0:00:11]} Bc4 {[%emt 0:00:58]} 27. Rfd1 {[%emt 0:00:18] Prevents Bd3} Qf6 {[%emt 0:01:25]} 28. Ne2 {[%emt 0:00:57]} Be6 {[%emt 0:01:17][%cal Oe6h3] A strong pair of Bishops.} 29. Qc3 {[%emt 0:00:27]} (29. Rxd8 $14 Rxd8 30. Rf1) 29... Rxd1+ $1 $15 {[%emt 0:00:44]} 30. Rxd1 {[%emt 0:00:03] [#]} Bxh3 $1 {[%emt 0:00:06]} 31. Nxe5 {[%emt 0:01:20] [#]} (31. Qxe5 Bg4) 31... Bxg2+ {[%emt 0:01:06]} 32. Kxg2 $11 {[%emt 0:00:05][%cal Bh1g2,Bg2h3,Bh3g3][%mdl 32] Ng3 would now be deadly. The position is equal.} Rg8+ {[%emt 0:00:56]} (32... Qf2+ $2 33. Kh3 Kg8 34. Qb3+ Kh8 35. Ng6+ (35. Qxb7 Qxe2 36. Ng6+ Kg8 $11) 35... Kg7 36. Nxf8 Kxf8 37. Ng3 $18 (37. Qxb7 Qf3+ 38. Ng3 Qxd1 $18)) 33. Ng3 {[%emt 0:00:07]} h4 {[%emt 0:00:34] [#]} 34. Rd8 $1 {[%emt 0:03:48] Ng6+ would kill now.} Qf2+ $1 {[%emt 0:00:25]} (34... Rxd8 $2 {perishes.} 35. Ng6+ Kg7 36. Nh5+ (36. Nxh4 $2 Qxc3 37. bxc3 Rd2+ 38. Kf3 Kf6 $19) 36... Kxg6 37. Qxf6+ $18) 35. Kh3 {[%emt 0:00:01] Threatening mate with Nf7+.} Qxg3+ {[%emt 0:00:12]} (35... Rxd8 $5 36. Nf7+ $8 Kh7 37. Nxd8 hxg3 38. Qxg3 Qf1+ (38... Qxb2 39. Qc7+ Qg7 40. Qxg7+ Kxg7 41. Nxb7 $11) 39. Kh2 Qe2+ 40. Kh3 Qxe4 $15 (40... Qxb2 41. Qc7+ Qg7 42. Qxg7+ Kxg7 43. Nxb7 $11)) 36. Qxg3 {[%emt 0:00:05]} hxg3 {[%emt 0:00:04]} 37. Rxg8+ {[%emt 0:01:35]} Kxg8 {[%emt 0:00:01]} 38. Kxg3 {[%emt 0:00:06]} Bd4 {[%emt 0:00:27][%csl LRb2,LRe5] Weighted Error Value: White=0.16 (very precise) /Black=0.15 (very precise) .  Mistake:       	White=3     	Black=2      Inaccurate:     	White=2     	Black=2      OK:         	White=9     	Black=7      Best:        	White=1     	Black=2      Strong:       	White=1     	Black=2      Brilliant:      	---       	Black=1} (38... Bb8 $5 39. Kf4 $8 Kf8 $11) 1/2-1/2